[Event "IV Open RGCC 2018"]
[Site "Gijon"]
[Date "2018.07.29"]
[Round "9"]
[White "Quesada Perez, Yasser"]
[Black "Kaczur, Florian"]
[Result "1/2-1/2"]
[ECO "C78"]
[WhiteElo "2531"]
[BlackElo "2471"]
[Annotator "RC"]
[PlyCount "168"]
[EventDate "2018.07.24"]
[EventType "swiss"]
[EventCountry "ESP"]
[SourceTitle "playchess.com"]
[Source "ChessBase"]
[SourceQuality "1"]
[TimeControl "5400+30"]

1. e4 {[%emt 0:00:00]} e5 {[%emt 0:00:14]} 2. Nf3 {[%emt 0:00:00]} Nc6 {[%emt 0:00:06]} 3. Bb5 {[%emt 0:00:00]} a6 {[%emt 0:00:22]} 4. Ba4 {[%emt 0:00:00]} Nf6 {[%emt 0:00:06]} 5. O-O {[%emt 0:00:12]} b5 {[%emt 0:00:53]} 6. Bb3 {[%emt 0:00:05]} Bc5 {[%emt 0:00:04]} 7. a4 {[%emt 0:01:33]} Rb8 {[%emt 0:00:56]} 8. axb5 {[%emt 0:00:07]} axb5 {[%emt 0:00:04]} 9. Nxe5 {[%emt 0:00:05]} Nxe5 {[%emt 0:00:04]} 10. d4 {[%emt 0:00:05]} Bxd4 {[%emt 0:00:12]} 11. Qxd4 {[%emt 0:00:05]} d6 {[%emt 0:00:26]} 12. Bf4 {[%emt 0:00:03]} O-O {[%emt 0:00:57]} 13. Nc3 {[%emt 0:00:43]} c5 {[%emt 0:01:32]} 14. Qe3 {[%emt 0:01:29]} c4 {[%emt 0:08:10]} 15. Ba2 {[%emt 0:00:02]} b4 {[%emt 0:05:27]} 16. Ne2 {[%emt 0:01:24]} Qc7 {[%emt 0:10:12]} 17. Bb1 {[%emt 0:10:49]} Re8 {[%emt 0:01:50]} 18. Ng3 {[%emt 0:05:19]} Ng6 {[%emt 0:12:02]} 19. Rd1 {[%emt 0:05:50]} Nxf4 {[%emt 0:02:48]} 20. Qxf4 {[%emt 0:00:06]} Re5 {[%emt 0:01:42]} 21. c3 {[%emt 0:02:56]} Be6 {[%emt 0:03:40]} 22. Ra6 {[%emt 0:13:51]} Rb6 {[%emt 0:07:30]} 23. Ra8+ {[%emt 0:02:54]} Rb8 {[%emt 0:00:41]} 24. Rxb8+ {[%emt 0:04:39]} Qxb8 {[%emt 0:00:06]} 25. Qd2 {[%emt 0:00:10]} Rb5 {[%emt 0:06:48]} 26. Qxd6 {[%emt 0:02:46]} Qxd6 {[%emt 0:00:06]} 27. Rxd6 {[%emt 0:00:03]} g5 {[%emt 0:00:21]} 28. cxb4 {[%emt 0:22:01]} Nd7 {[%emt 0:03:45]} 29. Ne2 {[%emt 0:02:50]} Rxb4 {[%emt 0:02:09]} 30. Rd2 {[%emt 0:00:08]} Nc5 {[%emt 0:01:23]} 31. Nc3 {[%emt 0:02:31]} Nb3 {[%emt 0:01:59]} 32. Rd1 {[%emt 0:01:04]} Nc5 {[%emt 0:00:29]} 33. Rd2 {[%emt 0:02:54]} Nb3 {[%emt 0:00:17]} 34. Rd8+ {[%emt 0:00:13]} Kg7 {[%emt 0:00:06]} 35. Nd1 {[%emt 0:01:20]} Nc5 {[%emt 0:07:04]} 36. Bc2 {[%emt 0:00:04]} Bd7 {[%emt 0:00:41]} 37. f3 {[%emt 0:01:19]} Kf6 {[%emt 0:00:37]} 38. Kf1 {[%emt 0:03:57]} Ke7 {[%emt 0:02:45]} 39. Rg8 {[%emt 0:00:28]} Ne6 {[%emt 0:01:48]} 40. Ke1 {[%emt 0:01:05]} Nd4 {[%emt 0:00:46]} 41. Kd2 {[%emt 0:00:30]} Nxc2 {[%emt 0:01:05]} 42. Kxc2 {[%emt 0:00:01]} Ba4+ {[%emt 0:00:13]} 43. Kc3 {[%emt 0:05:02]} Rb7 {[%emt 0:00:18]} 44. Nf2 {[%emt 0:00:07]} Rb3+ {[%emt 0:00:24]} 45. Kxc4 {[%emt 0:00:05]} Rxb2 {[%emt 0:00:04]} 46. Ng4 {[%emt 0:00:05]} Rxg2 {[%emt 0:01:57]} 47. Rxg5 {[%emt 0:00:04]} Bd1 {[%emt 0:00:34]} 48. Re5+ {[%emt 0:01:20]} Kf8 {[%emt 0:00:07]} 49. Ne3 {[%emt 0:01:37]} Be2+ {[%emt 0:01:05]} 50. Kd4 {[%emt 0:00:01]} Rxh2 {[%emt 0:02:37]} 51. f4 {[%emt 0:00:07]} Rh6 {[%emt 0:02:03]} 52. Rc5 {[%emt 0:00:48]} Rd6+ {[%emt 0:00:33]} 53. Nd5 {[%emt 0:00:14]} Bh5 {[%emt 0:02:51]} 54. e5 {[%emt 0:00:46]} Rd8 {[%emt 0:00:31]} 55. Ke4 {[%emt 0:00:01]} h6 {[%emt 0:03:40]} 56. f5 {[%emt 0:00:24]} Bg4 {[%emt 0:00:09]} 57. Kf4 {[%emt 0:01:07]} Bh3 {[%emt 0:00:15]} 58. Ra5 {[%emt 0:01:31]} Rc8 {[%emt 0:00:34]} 59. Ra4 {[%emt 0:00:48]} Rd8 {[%emt 0:00:57]} 60. Nf6 {[%emt 0:00:14]} Rc8 {[%emt 0:00:06]} 61. Rb4 {[%emt 0:00:28]} Ra8 {[%emt 0:00:22]} 62. Rc4 {[%emt 0:00:28]} Rd8 {[%emt 0:00:11]} 63. Ne4 {[%emt 0:00:04]} Bg2 {[%emt 0:02:22]} 64. Nd6 {[%emt 0:01:52]} f6 {[%emt 0:00:29]} 65. Rc7 {[%emt 0:00:05]} Bd5 {[%emt 0:00:21]} 66. Rh7 {[%emt 0:00:10]} Bg8 {[%emt 0:00:21]} 67. Rxh6 {[%emt 0:00:23]} fxe5+ {[%emt 0:00:02]} 68. Kxe5 {[%emt 0:00:07]} Ra8 {[%emt 0:00:24]} 69. Nb7 {[%emt 0:01:30]} Re8+ {[%emt 0:01:21]} 70. Kf6 {[%emt 0:00:23]} Re7 {[%emt 0:00:29]} 71. Nd8 {[%emt 0:00:35]} Rh7 {[%emt 0:03:38]} 72. Rg6 {[%emt 0:04:42]} Rd7 {[%emt 0:01:27]} 73. Ne6+ {[%emt 0:00:12]} Bxe6 {[%emt 0:00:02]} 74. Kxe6 {[%emt 0:00:58]} Re7+ {[%emt 0:00:17]} 75. Kf6 {[%emt 0:00:06]} Rf7+ {[%emt 0:00:11]} 76. Kg5 {[%emt 0:00:05]} Rg7 {[%emt 0:00:45]} 77. Kf6 {[%emt 0:00:21]} Rf7+ {[%emt 0:00:05]} 78. Ke5 {[%emt 0:00:04]} Re7+ {[%emt 0:00:11]} 79. Kf4 {[%emt 0:00:07]} Ra7 {[%emt 0:00:42]} 80. Rb6 {[%emt 0:00:24]} Kf7 {[%emt 0:00:13]} 81. Kg5 {[%emt 0:00:09]} Rc7 {[%emt 0:00:28]} 82. Rb1 {[%emt 0:00:12]} Rc6 {[%emt 0:00:44]} 83. Rb7+ {[%emt 0:00:09]} Kf8 {[%emt 0:00:02]} 84. f6 {[%emt 0:00:10]} Rc1 {[%emt 0:00:11]} 1/2-1/2

[Event "IV Open RGCC 2018"]
[Site "Gijon"]
[Date "2018.07.29"]
[Round "9"]
[White "Jimenez Almeida, Luis David"]
[Black "Cori Quispe, Kevin Joel"]
[Result "0-1"]
[ECO "A46"]
[WhiteElo "2223"]
[BlackElo "2487"]
[Annotator "ChessBase"]
[PlyCount "56"]
[EventDate "2018.07.24"]
[EventType "swiss"]
[EventCountry "ESP"]
[SourceTitle "playchess.com"]
[Source "ChessBase"]
[SourceQuality "1"]
[TimeControl "5400+30"]

1. d4 {[%emt 0:00:00]} Nf6 {[%emt 0:00:10]} 2. Nf3 {[%emt 0:00:00]} e6 {[%emt 0:00:07]} 3. Bg5 {[%emt 0:00:00]} h6 {[%emt 0:00:06]} 4. Bxf6 {[%emt 0:00:00]} Qxf6 {[%emt 0:00:06]} 5. e4 {[%emt 0:00:00]} d6 {[%emt 0:00:09]} 6. Nc3 {[%emt 0:00:10]} c6 {[%emt 0:00:37]} 7. a4 {[%emt 0:03:01]} e5 {[%emt 0:00:20]} 8. d5 {[%emt 0:01:04]} Be7 {[%emt 0:05:41]} 9. Be2 {[%emt 0:01:30]} Qg6 {[%emt 0:00:31]} 10. O-O {[%emt 0:03:15]} O-O {[%emt 0:00:09]} 11. a5 {[%emt 0:02:01]} Nd7 {[%emt 0:05:01]} 12. a6 {[%emt 0:03:34]} Nc5 {[%emt 0:00:30]} 13. Nd2 {[%emt 0:02:14]} cxd5 {[%emt 0:01:14]} 14. Nxd5 {[%emt 0:02:21]} Bd8 {[%emt 0:00:06]} 15. axb7 {[%emt 0:04:57]} Bxb7 {[%emt 0:00:38]} 16. Bf3 {[%emt 0:00:36]} Bxd5 {[%emt 0:04:55]} 17. exd5 {[%emt 0:00:15]} f5 {[%emt 0:00:10]} 18. b4 {[%emt 0:01:05]} Nd7 {[%emt 0:00:05]} 19. Nc4 {[%emt 0:04:27]} Rc8 {[%emt 0:05:15]} 20. Be2 {[%emt 0:01:42]} Bb6 {[%emt 0:00:13]} 21. Nxb6 {[%emt 0:01:56]} axb6 {[%emt 0:00:06]} 22. Bb5 {[%emt 0:06:53]} Nf6 {[%emt 0:01:49]} 23. Bc6 {[%emt 0:01:26]} e4 {[%emt 0:01:10]} 24. Qd4 {[%emt 0:03:45]} Ng4 {[%emt 0:01:51]} 25. f3 {[%emt 0:17:08]} exf3 {[%emt 0:04:05]} 26. Rxf3 {[%emt 0:00:23]} Ne5 {[%emt 0:00:06]} 27. Rf4 {[%emt 0:00:51]} Qf6 {[%emt 0:01:27]} 28. b5 {[%emt 0:00:44]} g5 {[%emt 0:00:17]} 0-1

[Event "IV Open RGCC 2018"]
[Site "Gijon"]
[Date "2018.07.29"]
[Round "9"]
[White "Marino Bravo, Miguel Angel"]
[Black "Campora, Daniel H"]
[Result "1/2-1/2"]
[ECO "A45"]
[WhiteElo "2194"]
[BlackElo "2405"]
[Annotator "NA"]
[PlyCount "91"]
[EventDate "2018.07.24"]
[EventType "swiss"]
[EventCountry "ESP"]
[SourceTitle "playchess.com"]
[Source "ChessBase"]
[SourceQuality "1"]
[TimeControl "5400+30"]

1. d4 Nf6 2. Bf4 d6 3. e3 Nbd7 4. Nf3 Nh5 5. Bg5 h6 6. Bh4 g5 7. Nfd2 Ndf6 8. Bg3 Bg7 9. Be2 Nxg3 10. hxg3 c5 11. c3 Bd7 12. Na3 a6 13. Bf3 Qc7 14. Ne4 Nxe4 15. Bxe4 O-O-O 16. Qb3 Be6 17. Bd5 Bxd5 18. Qxd5 e6 19. Qf3 d5 20. Nc2 f5 21. O-O-O Rhf8 22. Qe2 Kb8 23. f4 g4 24. Ne1 c4 25. Qc2 Rc8 26. Kd2 Rh8 27. b4 Bf6 28. Qa4 Qd6 29. b5 axb5 30. Qxb5 Qa6 31. Qxa6 bxa6 32. Rb1+ Kc7 33. Nc2 Be7 34. Rb2 h5 35. Rhb1 Rb8 36. Rxb8 Rxb8 37. Rxb8 Kxb8 38. Kc1 Kb7 39. Kb2 Kb6 40. Kb1 Kc7 41. Kc1 Kd7 42. Kd2 Ke8 43. Nb4 Bxb4 44. cxb4 a5 45. b5 Kd7 46. a4 1/2-1/2